bitfinex/quotes_SOLUSD_20251025
["timestamp","ask_amount","ask_price","bid_price","bid_amount"]
[1761351043118,41.0755175,193.22,193.18,10.87647521]
[1761351043119,0.67,193.21,193.18,10.87647521]
[1761351043421,0.67,193.21,193.17,10.87647521]
[1761351043422,35.9,193.2,193.17,10.87647521]
[1761351043622,35.9,193.2,193.16,10.87647521]
[1761351043820,0.67,193.19,193.11,10.87647521]
[1761351044118,35.9,193.18,193.14,10.87647521]
[1761351044543,36.57,193.18,193.14,0.71]
[1761351044820,41.74677621,193.18,193.14,0.71]
[1761351047823,41.07677621,193.18,193.14,0.71]
[1761351048021,41.74677621,193.18,193.14,0.71]
[1761351048216,0.67,193.17,193.12,10.87647521]
[1761351048416,35.9,193.16,193.14,10.87647521]
[1761351048931,35.9,193.16,193.14,0.71]
[1761351049829,22.88,193.17,193.14,0.71]
[1761351050122,35.9,193.15,193.14,0.71]
[1761351051828,22.88,193.18,193.15,10.87647521]
[1761351052006,35.9,193.17,193.15,10.87647521]
[1761351052208,35.9,193.17,193.16,11.55647521]
[1761351058932,41.07678728,193.17,193.16,10.87647521]
[1761351061127,35.9,193.17,193.16,11.54647521]
[1761351061935,22.88,193.19,193.17,10.87647521]
[1761351062113,35.9,193.18,193.17,11.54647521]
[1761351062315,35.9,193.18,193.17,10.87647521]
[1761351062518,35.9,193.18,193.12,10.87647521]
[1761351062715,35.9,193.18,193.17,10.87647521]
[1761351063135,35.9,193.18,193.17,11.54647521]
[1761351063432,113.74647521,193.25,193.17,11.54647521]
[1761351063611,35.9,193.24,193.19,10.87647521]
[1761351063815,35.9,193.23,193.19,10.87647521]
[1761351064110,35.9,193.22,193.21,10.87647521]
[1761351064638,35.9,193.22,193.21,11.54647521]
[1761351066832,35.9,193.22,193.21,27.09172484]
[1761351067042,22.88,193.26,193.22,10.87647521]
[1761351067337,35.9,193.25,193.22,11.54647521]
[1761351067635,35.9,193.25,193.24,10.87647521]
[1761351070533,41.75464424,193.25,193.21,10.87647521]
[1761351070714,41.07464424,193.25,193.23,10.87647521]
[1761351071338,35.9,193.25,193.2,10.87647521]
[1761351071640,35.9,193.25,193.23,0.67]
[1761351071935,35.9,193.25,193.23,10.87647521]
[1761351075135,41.07465661,193.25,193.23,10.87647521]
[1761351077347,41.75465661,193.25,193.23,10.87647521]
[1761351077931,41.07465661,193.25,193.23,10.87647521]
[1761351078442,22.88,193.26,193.25,10.87647521]
[1761351078743,63.93437648,193.26,193.25,10.87647521]
[1761351079044,64.61437648,193.26,193.23,10.87647521]
[1761351081351,64.61437648,193.26,193.23,0.68]
[1761351081720,63.93437648,193.26,193.23,0.68]
[1761351086056,35.86,193.25,193.23,0.68]
[1761351086257,35.86,193.24,193.23,0.68]
[1761351092853,35.86,193.24,193.23,11.55647521]
[1761351103344,35.86,193.24,193.23,10.87647521]
[1761351104068,35.86,193.24,193.23,11.55647521]
[1761351104949,28.05441875,193.26,193.24,10.87647521]
[1761351105267,35.84,193.25,193.24,10.87647521]
[1761351106067,12.93251683,193.32,193.2,24.33403214]
[1761351106238,0.68,193.3,193.24,0.68]
[1761351106564,35.82,193.29,193.25,10.87647521]
[1761351106959,35.82,193.29,193.27,10.87647521]
[1761351110150,35.82,193.29,193.27,0.7]
[1761351110349,5.17335,193.3,193.27,0.7]
[1761351110552,35.82,193.29,193.27,0.7]
[1761351110768,5.87335,193.3,193.27,0.7]
[1761351110972,35.82,193.29,193.27,10.87647521]
[1761351111169,0.7,193.29,193.27,10.87647521]
[1761351111354,35.82,193.28,193.27,10.87647521]
[1761351112867,35.82,193.28,193.27,11.57647521]
[1761351116381,0.7,193.33,193.28,10.87647521]
[1761351116680,35.82,193.32,193.28,11.57647521]
[1761351116885,35.82,193.32,193.3,10.87647521]
[1761351117180,36.52,193.32,193.3,10.87647521]
[1761351117355,36.52,193.32,193.28,11.58647521]
[1761351118269,28.05253482,193.33,193.3,10.87647521]
[1761351118464,35.82,193.32,193.3,10.87647521]
[1761351118969,35.82,193.32,193.3,0.71]
[1761351120878,35.82,193.32,193.31,10.87647521]
[1761351121184,5.17203989,193.35,193.31,11.58647521]
[1761351121486,35.82,193.34,193.32,11.58647521]
[1761351121688,35.82,193.34,193.31,11.58647521]
[1761351122072,35.82,193.34,193.31,10.87647521]
[1761351122280,0.66,193.33,193.3,10.87647521]
[1761351122485,35.82,193.32,193.3,10.87647521]
[1761351122680,35.82,193.32,193.29,10.87647521]
[1761351122988,36.48,193.32,193.29,10.87647521]
[1761351123184,36.48,193.32,193.29,5.88355956]
[1761351123358,35.82,193.32,193.29,5.88355956]
[1761351123772,35.82,193.32,193.3,0.71]
[1761351129781,0.66,193.31,193.29,10.87647521]
[1761351130092,0.66,193.31,193.27,0.71]
[1761351131284,5.83310416,193.31,193.28,10.87647521]
[1761351133572,5.83310416,193.31,193.27,10.87647521]
[1761351133778,0.66,193.3,193.27,10.87647521]
[1761351134087,35.82,193.29,193.25,10.87647521]
[1761351134608,36.48,193.29,193.25,11.58647521]
[1761351135692,36.48,193.29,193.27,10.87647521]
[1761351136392,36.48,193.29,193.25,11.58647521]
[1761351137388,35.82,193.29,193.27,10.87647521]
[1761351139475,36.48,193.29,193.25,0.71]
[1761351139672,35.82,193.29,193.27,10.87647521]
[1761351140188,5.17339653,193.3,193.27,10.87647521]
[1761351140498,0.67,193.31,193.29,10.87647521]
[1761351140681,35.82,193.3,193.29,10.87647521]
[1761351140995,35.82,193.3,193.27,10.87647521]
[1761351141791,36.49,193.3,193.27,10.87647521]
[1761351142104,0.67,193.29,193.27,10.87647521]
[1761351142991,35.82,193.3,193.26,10.87647521]
[1761351143297,36.49,193.3,193.27,0.72]
[1761351144681,36.49,193.3,193.26,10.87647521]
[1761351144682,35.82,193.3,193.26,10.87647521]
[1761351144877,0.67,193.29,193.26,11.59647521]
[1761351145192,36.49,193.3,193.27,0.72]
[1761351145572,36.49,193.3,193.26,10.87647521]
[1761351145782,36.49,193.3,193.27,0.72]
[1761351152009,35.82,193.3,193.28,10.87647521]
[1761351152509,35.82,193.3,193.28,0.72]
[1761351152688,35.82,193.3,193.28,10.87647521]
[1761351153612,35.82,193.3,193.28,0.72]
[1761351154108,35.82,193.3,193.27,10.87647521]
[1761351154304,36.49,193.3,193.27,0.72]
[1761351156516,35.82,193.3,193.27,0.72]
[1761351157699,36.49,193.3,193.27,0.72]
[1761351162711,5.17277053,193.32,193.27,0.72]
[1761351162909,35.82,193.31,193.27,0.72]
[1761351163114,36.49,193.31,193.27,0.72]
[1761351163922,5.84313008,193.31,193.27,0.72]
[1761351164129,35.82,193.3,193.27,0.72]
[1761351164312,35.82,193.3,193.28,10.87647521]
[1761351164814,35.82,193.3,193.28,0.72]
[1761351168113,35.82,193.3,193.27,10.87647521]
[1761351168416,36.49,193.3,193.27,11.59647521]
[1761351171118,35.82,193.3,193.27,11.59647521]
[1761351172426,36.53,193.3,193.27,11.59647521]
[1761351173109,35.82,193.3,193.27,11.59647521]
[1761351176023,35.82,193.3,193.27,10.87647521]
[1761351176222,35.82,193.3,193.29,10.87647521]
[1761351179657,35.82,193.3,193.27,10.87647521]
[1761351179935,35.82,193.3,193.27,11.53647521]
[1761351180322,35.82,193.3,193.27,0.66]
[1761351180940,36.48,193.3,193.27,0.66]
[1761351182042,36.48,193.3,193.26,10.87647521]
[1761351182540,0.66,193.29,193.26,10.87647521]
[1761351182723,35.82,193.28,193.26,10.87647521]
[1761351183118,35.82,193.28,193.26,11.53647521]
[1761351183336,35.82,193.28,193.26,10.87647521]
[1761351183725,0.66,193.27,193.22,0.66]
[1761351183927,40.99450904,193.26,193.21,10.87647521]
[1761351184142,40.99450904,193.26,193.21,11.53647521]
[1761351184338,0.66,193.25,193.21,11.53647521]
[1761351184650,0.66,193.25,193.22,0.66]
[1761351184651,35.82,193.24,193.22,0.66]
[1761351185220,35.82,193.24,193.21,10.87647521]
[1761351185425,35.82,193.24,193.22,0.66]
[1761351194768,35.82,193.24,193.21,11.53647521]
[1761351195422,35.82,193.24,193.23,10.87647521]
[1761351198432,36.48,193.24,193.21,10.87647521]
[1761351198638,0.66,193.23,193.21,10.87647521]
[1761351198939,0.66,193.23,193.19,10.87647521]
[1761351199149,0.66,193.23,193.19,11.53647521]
[1761351200024,5.83518361,193.23,193.19,11.53647521]
[1761351200326,5.83518361,193.23,193.18,10.87647521]
[1761351200529,0.69,193.22,193.18,11.52647521]
[1761351200728,35.82,193.21,193.18,11.52647521]
[1761351201144,35.82,193.21,193.18,10.87647521]
[1761351201446,36.51,193.21,193.18,11.52647521]
[1761351202422,40.99579426,193.21,193.13,15.54686082]
[1761351202626,0.69,193.2,193.15,10.87647521]
[1761351202845,0.69,193.2,193.15,11.52647521]
[1761351203437,5.86611496,193.2,193.15,11.52647521]
[1761351204040,0.69,193.19,193.16,0.65]
[1761351204245,35.82,193.18,193.17,10.87647521]
[1761351204445,35.82,193.18,193.17,11.52647521]
[1761351207238,35.82,193.18,193.15,0.65]
[1761351207438,35.82,193.18,193.17,10.87647521]
[1761351208054,35.82,193.18,193.17,11.52647521]
[1761351208256,35.82,193.18,193.17,10.87647521]
[1761351208762,35.82,193.18,193.17,11.52647521]
[1761351212537,28.05547504,193.22,193.18,10.87647521]
[1761351212739,35.82,193.21,193.19,0.65]
[1761351213153,40.99580481,193.21,193.19,0.65]
[1761351213760,40.99580481,193.21,193.16,5.17705292]
[1761351213966,40.99580481,193.21,193.18,0.65]
[1761351215462,41.68580481,193.21,193.18,0.65]
[1761351216161,40.99580481,193.21,193.18,0.65]
[1761351218553,0.69,193.2,193.17,10.87647521]
[1761351218750,35.82,193.19,193.17,10.87647521]
[1761351218948,35.82,193.19,193.17,0.65]
[1761351219158,35.82,193.19,193.18,11.52647521]
[1761351219538,12.9359211,193.27,193.19,10.87647521]
[1761351219742,36.51,193.24,193.21,10.87647521]
[1761351219962,35.82,193.23,193.21,10.87647521]
[1761351220159,36.51,193.23,193.2,10.87647521]
[1761351220365,0.69,193.22,193.2,10.87647521]
[1761351221668,36.51,193.23,193.19,11.52647521]
[1761351222169,0.69,193.22,193.19,11.52647521]
[1761351222350,35.82,193.21,193.19,11.52647521]
[1761351223768,35.82,193.21,193.14,10.87647521]
[1761351224063,35.82,193.21,193.19,10.87647521]
[1761351225065,35.82,193.21,193.2,10.87647521]
[1761351226053,35.82,193.21,193.18,5.82648574]
[1761351226359,35.82,193.21,193.19,11.52647521]
[1761351228984,36.51,193.21,193.18,10.87647521]
[1761351229268,35.82,193.21,193.19,0.65]
[1761351233056,35.82,193.21,193.17,10.87647521]
[1761351233057,36.54,193.21,193.17,10.87647521]
[1761351233263,35.82,193.21,193.17,10.87647521]
[1761351233471,35.82,193.21,193.18,0.68]
[1761351235178,35.82,193.21,193.18,5.85649609]
[1761351235787,35.82,193.21,193.18,8.43017172]
[1761351236279,35.82,193.21,193.18,7.75017172]
[1761351236467,35.82,193.21,193.2,10.87647521]
[1761351243269,35.82,193.21,193.2,11.59647521]
[1761351246007,35.82,193.21,193.2,10.87647521]
[1761351251033,36.51,193.21,193.19,10.87647521]
[1761351251218,0.69,193.2,193.19,10.87647521]
[1761351251423,0.69,193.2,193.18,10.87647521]
[1761351251622,6.82270156,193.22,193.18,10.87647521]
[1761351251623,35.82,193.19,193.18,10.87647521]
[1761351252016,35.82,193.19,193.18,11.59647521]
[1761351254130,35.82,193.19,193.18,18.42021452]
[1761351257740,35.82,193.19,193.18,10.87647521]
[1761351257946,43.33347136,193.19,193.14,10.87647521]
[1761351258141,1.64722001,193.17,193.14,33.75647521]
[1761351258454,35.82,193.16,193.14,33.75647521]
[1761351258640,36.51,193.16,193.14,33.75647521]
[1761351260231,36.51,193.16,193.14,10.87647521]
[1761351261846,35.82,193.16,193.14,10.87647521]
[1761351262848,36.54,193.16,193.14,10.87647521]
[1761351265751,35.82,193.16,193.14,10.87647521]
[1761351266452,35.82,193.16,193.14,11.56647521]
[1761351268134,35.82,193.16,193.14,10.87647521]
[1761351269460,35.82,193.16,193.14,11.56647521]
[1761351270030,35.82,193.16,193.14,10.87647521]
[1761351274239,40.99705936,193.16,193.14,10.87647521]
[1761351275565,40.99705936,193.16,193.13,10.87647521]
[1761351275752,40.99705936,193.16,193.15,10.87647521]
[1761351276762,40.99705936,193.16,193.13,11.56647521]
[1761351279166,41.71705936,193.16,193.13,11.56647521]
[1761351279365,35.82,193.16,193.13,1.64722001]
[1761351279565,41.71719323,193.16,193.13,0.69]
[1761351280268,41.71719323,193.16,193.14,10.87647521]
[1761351281959,40.99719323,193.16,193.14,10.87647521]
[1761351284386,40.99719323,193.16,193.13,10.87647521]
[1761351284562,40.99719323,193.16,193.14,0.69]
[1761351285564,40.99719323,193.16,193.13,10.87647521]
[1761351285765,2.36722001,193.15,193.11,10.87647521]
[1761351286093,1.64722001,193.13,193.09,10.97647521]
[1761351286270,35.82,193.12,193.09,10.97647521]
[1761351286471,35.82,193.12,193.11,10.87647521]
[1761351287592,35.82,193.12,193.09,11.66647521]
[1761351288190,0.72,193.11,193.09,0.1]
[1761351288389,35.82,193.1,193.09,0.1]
[1761351289081,35.82,193.1,193.09,11.66647521]
[1761351289271,35.82,193.1,193.09,7.61614595]
[1761351292173,35.82,193.1,193.09,5.96892594]
[1761351292380,35.82,193.1,193.09,7.61614595]
[1761351293377,35.82,193.1,193.09,5.96892594]
[1761351293598,35.82,193.1,193.09,7.61614595]
[1761351297894,35.82,193.1,193.09,5.96892594]
[1761351298070,35.82,193.1,193.09,7.61614595]
[1761351298901,35.82,193.1,193.09,16.84540115]
[1761351301085,35.82,193.1,193.09,18.49262116]
[1761351301675,22.88,193.14,193.09,18.49262116]
[1761351301875,35.82,193.13,193.1,13.23369522]
[1761351302381,35.82,193.13,193.12,10.87647521]
[1761351302775,35.82,193.13,193.12,0.71]
[1761351303597,38.15722001,193.13,193.11,10.87647521]
[1761351303783,0.69,193.12,193.11,10.87647521]
[1761351304583,36.51,193.13,193.11,10.87647521]
[1761351305884,35.82,193.13,193.11,10.87647521]
[1761351306100,35.82,193.13,193.11,11.58647521]
[1761351307086,35.82,193.13,193.11,10.87647521]
[1761351307284,36.51,193.13,193.11,10.87647521]
[1761351307685,35.82,193.13,193.11,10.87647521]
[1761351307884,6.82454476,193.15,193.12,0.71]
[1761351308089,6.82454476,193.15,193.11,11.58647521]
[1761351308090,35.82,193.14,193.11,11.58647521]
[1761351308288,36.51,193.14,193.11,11.58647521]
[1761351308607,0.69,193.13,193.11,10.87647521]
[1761351309306,35.82,193.14,193.11,10.87647521]
[1761351309501,35.82,193.14,193.13,10.87647521]
[1761351310409,35.82,193.14,193.11,10.87647521]
[1761351310582,35.82,193.14,193.11,11.58647521]
[1761351310784,36.51,193.14,193.11,11.58647521]
[1761351310984,5.86706881,193.16,193.13,10.87647521]
[1761351311184,35.82,193.15,193.13,10.87647521]
[1761351312313,35.82,193.15,193.12,11.58647521]
[1761351313109,35.8,193.14,193.13,3.28563589]
[1761351313499,35.8,193.14,193.13,0.71]
[1761351313705,35.8,193.14,193.13,3.28563589]
[1761351314201,35.8,193.14,193.13,19.33997057]
[1761351314395,35.8,193.14,193.13,18.62997057]
[1761351314598,35.8,193.14,193.13,19.33997057]
[1761351316885,35.8,193.14,193.13,16.76433468]
[1761351317185,35.8,193.14,193.13,19.33997057]
[1761351318295,35.8,193.14,193.13,10.87647521]
[1761351318532,36.49,193.14,193.13,10.87647521]
[1761351321282,44.24322727,193.14,193.13,10.87647521]
[1761351332621,44.24322727,193.14,193.09,0.1]
[1761351332813,2.57563589,193.1,193.09,0.1]
[1761351333006,2.57563589,193.1,193.02,10.87647521]
[1761351333007,22.88,193.07,193.02,10.87647521]
[1761351333240,25.45563589,193.03,192.98,0.71]
[1761351333546,35.86,193.02,192.99,10.87647521]
[1761351333911,38.43563589,193.02,193.01,10.87647521]
[1761351334328,35.86,193.02,193.01,10.87647521]
[1761351334946,44.28644616,193.02,192.97,0.71]
[1761351335113,41.71081027,193.02,192.97,0.71]
[1761351335445,10.87647521,193.02,193.01,10.87647521]
[1761351335615,30.18,193.02,193.01,11.58647521]
[1761351335811,0.67,193.07,193.01,14.1621111]
[1761351336010,2.57563589,193.05,193.01,11.58647521]
[1761351336417,2.57563589,193.05,193.03,10.87647521]
[1761351337036,2.57563589,193.07,193.04,0.71]
[1761351337247,39.14563589,193.06,193.02,10.87647521]
[1761351337530,38.47563589,193.06,193.01,16.05752701]
[1761351337729,38.47563589,193.06,193.03,0.71]
[1761351340822,0.67,193.05,193.01,10.87647521]
[1761351341024,22.88,193.03,193.01,10.87647521]
[1761351341235,35.9,193.02,193.0,10.87647521]
[1761351341434,2.57563589,193.03,193.0,11.58647521]
[1761351341622,25.45563589,193.1,192.97,15.56218389]
[1761351341623,35.92,193.01,192.99,13.4521111]
[1761351341822,30.94,193.0,192.99,13.4521111]
[1761351342023,22.88,193.05,193.0,0.71]
[1761351342336,35.92,193.04,193.0,0.71]
[1761351342527,35.92,193.04,193.0,5.89134157]
[1761351343230,35.92,193.04,193.01,10.87647521]
[1761351343443,35.92,193.04,193.01,11.58647521]
[1761351343635,35.92,193.04,193.01,10.87647521]
[1761351343849,35.92,193.04,193.03,10.87647521]
[1761351344641,22.88,193.01,192.91,5.18376444]
[1761351344945,35.92,193.0,192.96,13.4521111]
[1761351345151,35.98,192.99,192.98,10.87647521]
[1761351345335,35.98,192.99,192.98,11.58647521]
[1761351349548,35.98,192.99,192.98,10.87647521]
[1761351350648,35.98,192.99,192.98,11.53647521]
[1761351351139,35.98,192.99,192.98,10.87647521]
[1761351351337,35.98,192.99,192.98,0.66]
[1761351352649,35.98,192.99,192.97,5.18202789]
[1761351352940,35.98,192.99,192.97,5.84202789]
[1761351353119,35.98,192.99,192.96,10.87647521]
[1761351353328,36.7,192.99,192.96,10.87647521]
[1761351353564,2.57563589,192.98,192.96,10.87647521]
[1761351353727,2.57563589,192.98,192.97,10.87647521]
[1761351354146,38.53563589,192.98,192.97,10.87647521]
[1761351354946,38.53563589,192.98,192.95,5.18264781]
[1761351355136,38.53563589,192.98,192.95,5.84264781]
[1761351356659,0.72,192.97,192.85,4.51962379]
[1761351356834,2.57563589,192.95,192.91,0.66]
[1761351357035,38.53563589,192.96,192.92,10.87647521]
[1761351357255,35.96,192.96,192.92,10.87647521]
[1761351357550,35.96,192.96,192.93,0.66]
[1761351358537,38.53563589,192.96,192.93,0.66]
[1761351358731,39.21563589,192.96,192.91,11.59647521]
[1761351359131,44.39811367,192.96,192.91,14.1721111]
[1761351359330,35.96,192.96,192.92,0.72]
[1761351359966,39.21563589,192.96,192.92,0.72]
[1761351360167,44.39810789,192.96,192.92,0.72]
[1761351360463,41.822472,192.96,192.92,0.72]
[1761351360654,44.39810789,192.96,192.92,0.72]
[1761351360848,36.02,192.95,192.92,3.29563589]
[1761351361162,39.23315923,192.97,192.92,0.72]
[1761351361359,39.27563589,192.96,192.92,0.72]
[1761351362351,39.27563589,192.96,192.92,5.90349337]
[1761351362957,36.02,192.96,192.93,0.72]
[1761351363266,39.27563589,192.96,192.94,10.87647521]
[1761351363963,39.27563589,192.96,192.92,5.90349337]
[1761351363964,3.25563589,192.96,192.93,10.87647521]
[1761351364162,36.02,192.95,192.93,10.87647521]
[1761351364341,8.59534854,192.97,192.93,0.72]
[1761351364547,36.04,192.96,192.94,0.72]
[1761351364760,8.59534854,192.97,192.95,10.87647521]
[1761351365241,8.59534854,192.97,192.96,11.59647521]
[1761351365449,44.65534854,192.97,192.96,11.59647521]
[1761351366156,36.06,192.97,192.96,11.59647521]
[1761351366352,30.63703309,193.0,192.97,10.87647521]
[1761351366562,36.06,192.99,192.97,10.87647521]
[1761351366963,25.45563589,193.0,192.97,11.59647521]
[1761351367164,36.06,192.99,192.97,11.59647521]
[1761351367468,36.06,192.99,192.96,10.87647521]
[1761351367669,36.06,192.99,192.96,11.59647521]
[1761351367883,36.06,192.99,192.96,10.87647521]
[1761351368082,36.06,192.99,192.97,0.72]
[1761351369251,36.06,192.99,192.96,10.87647521]
[1761351369469,36.06,192.99,192.96,11.59647521]
[1761351370059,36.06,192.99,192.96,10.87647521]
[1761351370257,0.68,193.03,192.97,0.72]
[1761351370471,22.88,193.01,192.97,0.72]
[1761351371164,38.63563589,193.02,192.97,0.72]
[1761351371371,39.31563589,193.02,192.97,0.72]
[1761351371570,22.88,192.99,192.95,15.56460608]
[1761351371757,2.57563589,192.97,192.93,0.72]
[1761351371957,2.57563589,192.97,192.94,10.87647521]
[1761351372277,39.31563589,192.98,192.94,10.87647521]
[1761351372476,5.18215266,192.97,192.95,10.87647521]
[1761351373086,36.06,192.96,192.95,10.87647521]
[1761351373458,36.08,192.96,192.95,10.87647521]
[1761351373768,36.08,192.96,192.93,10.87647521]
[1761351373963,36.08,192.96,192.93,11.59647521]
[1761351374156,41.94244115,192.96,192.93,10.87647521]
[1761351374473,2.57563589,192.94,192.89,10.87647521]
[1761351374675,1.65261636,192.91,192.88,10.87647521]
[1761351374889,1.65261636,192.89,192.83,0.72]
[1761351375091,36.08,192.88,192.84,0.22]
[1761351375306,22.88,192.95,192.85,12.52909157]
[1761351375482,24.53261636,192.91,192.85,12.52909157]
[1761351375685,24.53261636,192.91,192.83,10.87647521]
[1761351375686,1.65261636,192.89,192.83,10.87647521]
[1761351376093,0.68,192.88,192.83,26.44996912]
[1761351376294,36.1,192.87,192.83,26.60258548]
[1761351376485,36.1,192.87,192.83,31.78848592]
[1761351377202,36.1,192.87,192.84,0.72]
[1761351377791,7.51702492,192.89,192.84,0.72]
[1761351378001,36.1,192.88,192.84,0.72]
[1761351378205,36.78,192.88,192.84,0.72]
[1761351378389,36.78,192.88,192.85,10.87647521]
[1761351378795,1.65261636,192.86,192.81,0.72]
[1761351379102,36.16,192.85,192.82,12.52909157]
[1761351379314,36.16,192.84,192.83,0.72]
[1761351380980,36.16,192.84,192.82,16.72260997]
[1761351381199,2.33261636,192.87,192.82,16.72260997]
[1761351381499,36.83,192.86,192.82,16.72260997]
[1761351382179,36.83,192.86,192.82,18.37522633]
[1761351382373,36.16,192.86,192.83,0.66]
[1761351382576,36.83,192.86,192.83,0.66]
[1761351382995,36.16,192.86,192.83,0.66]
[1761351383194,36.83,192.86,192.83,0.66]
[1761351384296,36.83,192.86,192.82,17.71522633]
[1761351384499,2.32261636,192.87,192.83,0.66]
[1761351384675,36.16,192.86,192.83,0.66]
[1761351385697,36.83,192.86,192.83,10.87647521]
[1761351385903,36.16,192.85,192.83,11.53647521]
[1761351386489,0.67,192.87,192.83,16.72238018]
[1761351386690,36.16,192.86,192.85,10.87647521]
[1761351387804,36.16,192.86,192.84,10.87647521]
[1761351388786,0.67,192.87,192.85,7.49792061]
[1761351388787,36.16,192.87,192.85,7.49792061]
[1761351388992,36.16,192.87,192.86,11.53647521]
[1761351390503,36.16,192.87,192.86,16.72158357]
[1761351390697,0.67,192.9,192.87,10.87647521]
[1761351390899,36.14,192.89,192.87,10.87647521]
[1761351391393,36.14,192.89,192.86,5.84510836]
[1761351392002,2.32261636,192.88,192.83,0.66]
[1761351392202,36.14,192.87,192.84,11.53647521]
[1761351393700,36.81,192.87,192.84,11.53647521]
[1761351393887,0.67,192.87,192.84,11.53647521]
[1761351394087,36.16,192.86,192.84,11.53647521]
[1761351394890,36.16,192.85,192.84,11.53647521]
[1761351395706,36.16,192.85,192.84,10.87647521]
[1761351396004,36.16,192.85,192.84,16.72212134]
[1761351396182,36.16,192.85,192.84,16.06212134]
[1761351396611,36.16,192.85,192.82,0.66]
[1761351396810,36.16,192.85,192.84,10.87647521]
[1761351397292,36.83,192.85,192.81,10.87647521]
[1761351397608,36.83,192.85,192.81,11.53647521]
[1761351397806,0.67,192.85,192.83,10.87647521]
[1761351397999,36.16,192.84,192.83,10.87647521]
[1761351399197,36.16,192.84,192.82,10.87647521]
[1761351400309,36.83,192.84,192.82,10.87647521]
[1761351400803,36.83,192.84,192.81,10.87647521]
[1761351402395,36.16,192.84,192.81,11.53647521]
[1761351402599,36.16,192.84,192.81,13.18909157]
[1761351402796,0.67,192.86,192.82,1.65261636]
[1761351403004,36.14,192.85,192.84,10.87647521]
[1761351403202,36.14,192.85,192.82,10.87647521]
[1761351403406,36.81,192.85,192.82,10.87647521]
[1761351403990,0.67,192.85,192.81,12.52909157]
[1761351404215,36.16,192.84,192.81,13.18909157]
[1761351404394,36.16,192.84,192.81,18.37545036]
[1761351405501,36.16,192.84,192.81,16.722834]
[1761351405721,36.16,192.84,192.81,18.37545036]
[1761351405908,36.83,192.84,192.81,16.062834]
[1761351406110,36.18,192.83,192.82,12.52909157]
[1761351406922,36.18,192.83,192.82,11.53647521]
[1761351407119,36.18,192.83,192.82,18.37527557]
[1761351407702,0.67,192.86,192.83,10.87647521]
[1761351407902,36.18,192.85,192.82,7.49880036]
[1761351408197,36.18,192.85,192.81,17.71543827]
[1761351408410,36.85,192.85,192.81,18.37543827]
[1761351408729,36.85,192.85,192.82,1.65261636]
[1761351409207,36.85,192.85,192.82,6.8386647]
[1761351409419,36.85,192.85,192.82,5.18604834]
[1761351409608,36.85,192.85,192.82,6.8386647]
[1761351409916,36.85,192.85,192.82,5.18604834]
[1761351410429,36.83,192.85,192.82,5.18604834]
[1761351411031,36.83,192.85,192.82,4.68604834]
[1761351412013,0.65,192.84,192.82,4.68604834]
[1761351412594,0.65,192.84,192.81,12.52909157]
[1761351412799,0.65,192.84,192.81,13.20909157]
[1761351413023,0.65,192.84,192.81,18.39550114]
[1761351413806,0.65,192.84,192.81,17.71550114]
[1761351416228,0.65,192.84,192.81,18.39550114]
[1761351417913,36.14,192.83,192.81,17.71550114]
[1761351418317,36.14,192.82,192.81,17.71550114]
[1761351420636,0.67,192.87,192.81,31.3816336]
[1761351420938,36.14,192.86,192.84,1.65261636]
[1761351421433,36.14,192.86,192.85,10.87647521]
[1761351421735,0.67,192.89,192.85,10.87647521]
[1761351422034,36.14,192.88,192.85,12.52909157]